Cogmind - Beta 15 @@@ ROGUE MODE // 2025.10.20 @ 21:24:41 Player: Lazz Result: Destroyed by as-92875 with Assembled Rifle Performance ------------- Evolutions (1) 500 Regions Visited (3) 600 Robots Destroyed (35) 175 Value Destroyed (600) 600 Prototype IDs (2) 40 Alien Tech Used (0) 0 Bonus (0) 0 TOTAL SCORE: 1915 Bonus ------- None Cogmind --------- Core Integrity 0/400 Matter 30/300 Energy 98/100 System Corruption 0% Temperature Cool (0) Movement Rolling (90) Location -9/Mines Parts ------- > --- POWER (1) -------- (None) > --- PROPULSION (3) --- Aluminum Leg Wheel Compact Wheel > --- UTILITY (3) ------ Medium Storage Unit Signal Interpreter Terrain Scan Processor > --- WEAPON (2) ------- (None) > --- INVENTORY (10) --- Ion Engine Ion Engine Flexi-carbon Leg Large Battery (200) Medium Matter Pod (0) Improved Propulsion Shielding Peak State ------------ > --- POWER ------------ Deuterium Engine > --- PROPULSION ------- Wheel Compact Wheel Compact Wheel > --- UTILITY ---------- Medium Storage Unit Signal Interpreter Terrain Scan Processor > --- WEAPON ----------- Rocket Launcher Rocket Launcher > --- INVENTORY -------- Ion Engine Ion Engine Wheel Large Battery Medium Matter Pod Improved Propulsion Shielding [Rating: 14] Favorites ----------- Power Ion Engine Engine Ion Engine Propulsion Hover Unit Leg Aluminum Leg Wheel Wheel Hover Unit Hover Unit Utility Signal Interpreter Storage Medium Storage Unit Processor Signal Interpreter Weapon Assault Rifle Ballistic Gun Assault Rifle Launcher Rocket Launcher Build | -11 -10 -9 -9 ------- Run | Yrd Mat Mat Min Slots Evolved 2 | . . 2 . Power . | . . . . Propulsion 1 | . . 1 . Utility 1 | . . 1 . Weapon . | . . . . Parts Attached 25 | 6 8 10 1 Power 2 | 1 . 1 . Engine 2 | 1 . 1 . Core . | . . . . Reactor . | . . . . Propulsion 10 | 2 3 4 1 Treads . | . . . . Leg 1 | . . . 1 Wheel 6 | 2 . 4 . Hover 3 | . 3 . . Flight . | . . . . Utility 5 | 1 2 2 . Device . | . . . . Storage 3 | 1 1 1 . Processor 2 | . 1 1 . Hackware . | . . . . Protection . | . . . . Artifact . | . . . . Weapon 8 | 2 3 3 . Energy Gun . | . . . . Energy Cannon . | . . . . Ballistic Gun 3 | 2 1 . . Ballistic Cannon . | . . . . Launcher 5 | . 2 3 . Special Weapon . | . . . . Impact Weapon . | . . . . Slashing Weapon . | . . . . Piercing Weapon . | . . . . Special Melee Weapon . | . . . . Unidentified Prototypes . | . . . . Parts Lost 16 | . 4 11 1 Power 1 | . . 1 . Propulsion 7 | . 1 5 1 Utility . | . . . . Weapon 8 | . 3 5 . Highest Loss Streak 5 | . 2 4 5 To Critical Strikes . | . . . . Average Backups 4 | 2 4 5 5 Power 1 | . 1 1 2 Propulsion . | 1 . . . Utility 1 | . . 2 3 Weapon 1 | . 1 2 . Tool/Special . | . . . . Unused Backups 7 | 2 1 1 3 Power 1 | . . . 1 Propulsion 3 | 2 1 . . Utility 3 | . . 1 2 Weapon . | . . . . Tool/Special . | . . . . Average Slot Usage (%) 81 | . 88 76 66 Engine 11 | . 14 10 . Wheel 8 | . 9 7 29 Hover 13 | . 10 17 . Storage 14 | . 14 14 11 Processor 13 | . 10 15 22 Ballistic Gun 10 | . 18 2 . Launcher 8 | . 9 8 . Peak Build Rating 14 | 6 8 14 8 Average Rating 7 | 3 6 9 6 On Entrance 5 | . 6 8 7 Naked Turns . | . . . . Heaviest Build 23 | 13 21 23 10 Greatest Support 42 | 26 26 42 36 Greatest Overweight (x) 7 | . 6 7 . Average Overweight (x) . | . . . . Largest Inventory Capacity 10 | 8 10 10 10 Average Capacity 9 | 6 9 10 10 Most Carried 9 | 6 8 9 6 Average Carried 4 | 2 4 5 5 Final Capacity 10 | 8 10 10 10 Final Carried 6 | 1 6 5 6 Class Distribution -------------------- 100% | Mutant Dominant Class ---------------- Mutant | -10/Materials Mutant | -9/Materials Mutant | -9/Mines Resources | -11 -10 -9 -9 ----------- Run | Yrd Mat Mat Min Matter Collected 550 | 181 116 228 25 Remotely . | . . . . Salvage Created 491 | . 189 302 . Parts 46 | . 20 26 . Haulers Intercepted 2 | . 1 1 . Recyclers Shooed . | . . . . Parts Field Recycled . | . . . . Retrieved Matter . | . . . . Parts Self-Destructed . | . . . . Prevented . | . . . . Kills | -11 -10 -9 -9 ------- Run | Yrd Mat Mat Min Combat Hostiles Destroyed 18 | . 9 9 . Guns 3 | . 3 . . AOE 15 | . 6 9 . Classes Destroyed 9 | . 6 3 . Worker 8 | . 2 6 . Builder 2 | . 1 1 . Tunneler 1 | . 1 . . Hauler 2 | . 1 1 . Recycler 2 | . . 2 . Watcher 2 | . . 2 . Swarmer 9 | . 6 3 . Grunt 7 | . 3 4 . Sentry 2 | . . 2 . Best Kill Streak 6 | . 5 6 . Combat Bots Only 4 | . 4 3 . Max Kills in Single Turn 3 | . 2 3 . Gunslinging . | . . . . Exploded 3 | . 2 3 . Melee . | . . . . Uniques/NPCs Destroyed . | . . . . Combat | -11 -10 -9 -9 -------- Run | Yrd Mat Mat Min Hostile Shots Fired 129 | . 50 71 8 Missed 42 | . 19 22 1 Hits 87 | . 31 49 7 Melee 4 | . . . 4 Projectile 83 | . 31 49 3 Critical Strikes 2 | . . 1 1 Damage Taken 1629 | . 463 996 170 Core 465 | . 52 314 99 Absorbed by Shields . | . . . . Regen/Repaired (Parts) 40 | . 27 13 . Core Remaining (%) 89 | 100 79 . . Volleys Fired 53 | . 34 19 . Largest 2 | . 2 2 . Hottest 66 | . 53 66 . Shots Fired 85 | . 60 25 . Gun 49 | . 47 2 . Cannon . | . . . . Launcher 36 | . 13 23 . Special . | . . . . Kinetic 49 | . 47 2 . Thermal . | . . . . Explosive 36 | . 13 23 . Electromagnetic . | . . . . Robot Hit Streak 15 | . 9 15 . Robot Miss Streak 4 | . 4 1 . Penetration Max . | . . . . Secondary Targets 1 | . 1 . . Max Gunslinging Chain 1 | . 1 . . Shots Hit Robots 54 | . 34 20 . Core Hits 54 | . 21 33 . Critical Kills . | . . . . Critical Parts Destroyed . | . . . . Critical Strikes . | . . . . Melee Attacks . | . . . . Impact . | . . . . Slashing . | . . . . Piercing . | . . . . Sneak Attacks . | . . . . Combat Hostiles . | . . . . Follow-up Attacks . | . . . . Damage Inflicted 2524 | . 1102 1422 . Guns 353 | . 340 13 . Cannons . | . . . . Explosions 2171 | . 762 1409 . Melee . | . . . . Ramming . | . . . . Kinetic 353 | . 340 13 . Thermal 203 | . 203 . . Explosive 1968 | . 559 1409 . Electromagnetic . | . . . . Impact . | . . . . Slashing . | . . . . Piercing . | . . . . Highest Corruption 2 | . 2 . . Average Corruption 2 | . 2 . . Corruption Purged . | . . . . Corruption Blocked . | . . . . Effects 4 | . 4 . . Message Errors 1 | . 1 . . Matter Fused 1 | . 1 . . Data Loss (minor) 2 | . 2 . . Overload Shots . | . . . . Overflow Damage 235 | . 150 85 . Projectiles . | . . . . Explosions 235 | . 150 85 . Melee . | . . . . Knockbacks . | . . . . Impact . | . . . . Kinetic . | . . . . Secondary . | . . . . Self-Inflicted Damage 549 | . 142 407 . Shots 17 | . 3 14 . Rammed 1 | . . 1 . Targets Rammed 1 | . . 1 . Kicked . | . . . . Crushed . | . . . . Highest Temperature 18 | . 18 18 . Average Temperature 9 | . 8 9 . Received Heat Transfer 303 | . 111 186 6 Siege Activations . | . . . . Martial Activations . | . . . . Shielding Activations . | . . . . Robots Disrupted . | . . . . Combat Hostiles . | . . . . Robots Corrupted . | . . . . Combat Hostiles . | . . . . Parts Fried . | . . . . Impact Corruptions . | . . . . Robots Melted . | . . . . Combat Hostiles . | . . . . Parts Melted . | . . . . Heat Transferred 150 | . 150 . . Parts Sabotaged . | . . . . Parts Stolen . | . . . . Parts Stripped . | . . . . Power Chain Reactions . | . . . . Alert | -11 -10 -9 -9 ------- Run | Yrd Mat Mat Min Maximum Alert Level 1 | . 1 1 . Low Security (%) 94 | 100 89 97 100 Level 1 5 | . 10 2 . Level 2 . | . . . . Level 3 . | . . . . Level 4 . | . . . . Level 5 . | . . . . High Security . | . . . . Max Security . | . . . . Peak Influence 222 | . 222 219 85 Initial 85 | . . 74 85 Average 106 | . 99 126 75 Influence Increases 876 | . 399 477 . Destroy 0b10 Robot/C 360 | . 180 180 . Destroy 0b10 Robot/NC 85 | . 25 60 . Destroy Leader 98 | . 42 56 . Successful Hack 38 | . 2 36 . Disable Machine 105 | . 60 45 . Destroy Structure 175 | . 90 85 . Partial Spotted 15 | . . 15 . Influence Decreases 811 | . 221 436 154 Entered New Map 238 | . . 104 134 Time Decay 418 | . 186 222 10 Lost Part 155 | . 35 110 10 Squads Dispatched 3 | . 1 2 . Investigation 2 | . 1 1 . Extermination . | . . . . Reinforcement 1 | . . 1 . Assault . | . . . . Garrison . | . . . . Intercept . | . . . . Searches Triggered . | . . . . Construction Impeded . | . . . . Haulers Reinforced . | . . . . Active Scanning Responses . | . . . . Cargo Convoy Interrupts . | . . . . Stealth | -11 -10 -9 -9 --------- Run | Yrd Mat Mat Min Distress Signals 2 | . 1 1 . Communications Jammed . | . . . . Distress Signals . | . . . . Times Spotted 51 | . 14 16 21 Peak Tracking Total 23 | . 5 4 23 Tactical Retreats . | . . . . Traps | -11 -10 -9 -9 ------- Run | Yrd Mat Mat Min Traps Triggered 2 | . 2 . . Indirectly . | . . . . Trap Hack Attempts . | . . . . Triggered . | . . . . Disarmed . | . . . . Reprogrammed . | . . . . Reused . | . . . . Traps Extracted . | . . . . Installed . | . . . . Triggered . | . . . . Machines | -11 -10 -9 -9 ---------- Run | Yrd Mat Mat Min Machines Disabled 7 | . 4 3 . Max in Single Turn 2 | . 2 2 . Machines Repaired . | . . . . Machines Dismantled . | . . . . Machines Sabotaged . | . . . . Overloaded Fab Kills . | . . . . Hacking | -11 -10 -9 -9 --------- Run | Yrd Mat Mat Min Machines Accessed 6 | . 1 5 . Terminals 2 | . . 2 . Fabricators . | . . . . Repair Stations 3 | . 1 2 . Recycling Units 1 | . . 1 . Scanalyzers . | . . . . Garrison Access . | . . . . Total Hacks 29 | . 7 22 . Successful 23 | . 6 17 . Failed 6 | . 1 5 . Catastrophic . | . . . . Database Lockouts . | . . . . Manual . | . . . . Terminals 8 | . . 8 . Fabricators . | . . . . Repair Stations 15 | . 7 8 . Recycling Units 6 | . . 6 . Scanalyzers . | . . . . Garrison Access . | . . . . Terminal Hacks 7 | . . 7 . Record 3 | . . 3 . Prototype ID Bank 1 | . . 1 . Dispatch Records 1 | . . 1 . Maintenance Status 1 | . . 1 . Investigation Status 1 | . . 1 . Fabricator Hacks . | . . . . Repair Station Hacks 10 | . 6 4 . Scan Component 5 | . 3 2 . Repair 4 | . 3 1 . Refit 1 | . . 1 . Recycling Unit Hacks 6 | . . 6 . Recycle Component 2 | . . 2 . Process 2 | . . 2 . Retrieve Matter 2 | . . 2 . Scanalyzer . | . . . . Garrison Access Hacks . | . . . . Unauthorized Hacks . | . . . . Terminals . | . . . . Fabricators . | . . . . Repair Stations . | . . . . Recycling Units . | . . . . Scanalyzers . | . . . . Garrison Access . | . . . . Data Cores Recovered . | . . . . Used . | . . . . Hacking Detections 5 | . 1 4 . Full Trace Events 4 | . 1 3 . Feedback Events . | . . . . Feedback Blocked . | . . . . Robot Schematics Acquired . | . . . . Robots Built . | . . . . Authchips . | . . . . Time . | . . . . Total Robot Build Rating . | . . . . Part Schematics Acquired . | . . . . Parts Built . | . . . . Authchips . | . . . . Time . | . . . . Total Part Build Rating . | . . . . Parts Repaired 4 | . 3 1 . Time 114 | . 78 36 . Parts Recycled 2 | . . 2 . Recycled Matter 101 | . . 101 . Retrieved Matter 101 | . . 101 . Retrieved Components . | . . . . Parts Scanalyzed . | . . . . Part Schematics Acquired . | . . . . Parts Damaged . | . . . . Bothacking | -11 -10 -9 -9 ------------ Run | Yrd Mat Mat Min Used RIF Installer . | . . . . Robots Hacked . | . . . . Non-combat . | . . . . Combat . | . . . . Robot Hacks Applied . | . . . . Relay Couplers Released . | . . . . Fabnet Peak Effective % . | . . . . Robots Rewired . | . . . . Allies Hacked . | . . . . Hacks Repelled . | . . . . Allies | -11 -10 -9 -9 -------- Run | Yrd Mat Mat Min Total Allies . | . . . . Largest Group . | . . . . Highest-Rated Group . | . . . . Highest-Rated Ally . | . . . . Total Orders . | . . . . Ally Attacks . | . . . . Total Damage . | . . . . Kills . | . . . . Allies Corrupted . | . . . . Allies Melted . | . . . . Intel | -11 -10 -9 -9 ------- Run | Yrd Mat Mat Min Active Infowar (turns) . | . . . . Robot Analysis Total . | . . . . Derelict Logs Recovered . | . . . . Drone Launches . | . . . . Drone Recoveries . | . . . . Exploration | -11 -10 -9 -9 ------------- Run | Yrd Mat Mat Min Turns Passed 977 | 54 430 473 20 Spaces Moved 647 | 55 256 317 19 Core 44 | 26 4 14 . Treads . | . . . . Legs . | . . . . Wheels 310 | 29 160 102 19 Hover 293 | . 92 201 . Flight . | . . . . Fastest Speed 50 | 50 90 52 86 Average Speed 107 | 69 106 117 89 Slowest Speed 400 | 90 350 400 90 Overloaded Moves . | . . . . Propulsion Burnouts . | . . . . Robots Hopped . | . . . . Potential Cave-ins . | . . . . Cave-ins Triggered . | . . . . Exploration Rate (%) 22 | 3 49 34 3 Regions Visited 3 Branch Regions 1 Pre-discovered Areas . | . . . . Known Exits Taken 2 | . 1 1 . Unknown Exits Taken 1 | 1 . . . Scrap Searched . | . . . . Spaces Dug . | . . . . Terrain Destroyed 180 | . 100 80 . Melee . | . . . . Projectile . | . . . . AOE 180 | . 100 80 . Terrain Rammed . | . . . . Walls Destroyed . | . . . . Machines Disabled . | . . . . Actions | -11 -10 -9 -9 --------- Run | Yrd Mat Mat Min Total 842 | 71 357 392 22 Wait 71 | . 40 31 . Move 644 | 54 255 316 19 Hop . | . . . . Pick Up 38 | 9 16 11 2 Fast Attach . | . . . . Attach 25 | 6 7 11 1 Detach 1 | . . 1 . Swap 4 | . 2 2 . Drop 5 | 2 3 . . Fire 53 | . 34 19 . Melee . | . . . . Ram 1 | . . 1 . Kick . | . . . . Crush . | . . . . Escape Stasis . | . . . . Rewire . | . . . . Trap . | . . . . Miscellaneous . | . . . . Route ------- -11/Scrapyard -10/Materials (discovered 3 exits: *Mat / *Min x2) -9/Materials -9/Mines History --------- Turn | Location | Event 3 | -11/Scrapyard | Discovered new exit (range 16) 55 | -11/Scrapyard | Entered Materials 123 | -10/Materials | Discovered new exit (range 10) 146 | -10/Materials | Identified exit to Mines 233 | -10/Materials | Discovered new exit (range 14) 234 | -10/Materials | Discovered exit to Mines (range 16) 308 | -10/Materials | Build established: Mutant 403 | -10/Materials | Repaired Hover Unit 429 | -10/Materials | Repaired Hover Unit 462 | -10/Materials | Repaired Hover Unit 479 | -10/Materials | Identified exit to Materials 485 | -10/Materials | Entered another Materials area 485 | -9/Materials | Evolved 2 slots: Propulsion x1, Utility x1 550 | -9/Materials | Discovered new exit (range 16) 638 | -9/Materials | Lost 3 parts (1n2w) 696 | -9/Materials | Repaired Broken Hover Unit 794 | -9/Materials | Lost 3 parts (3n) 933 | -9/Materials | Core integrity fell below 50% 958 | -9/Materials | Identified exit to Mines 958 | -9/Materials | Entered Mines 959 | -9/Mines | Assembled infested the area 961 | -9/Mines | Core integrity fell below 20% 964 | -9/Mines | Assisted by a Guerilla fighting off Assembled 978 | -9/Mines | Destroyed by as-92875 with Assembled Rifle Last Messages --------------- G-34 Mercenary suffers critical hit (Destroy). G-34 Mercenary knocked back. G-34 Mercenary suffers critical hit (Destroy). G-34 Mercenary destroyed. A derelict emerges from the shadows: "You need to get out of here! I've been tracking a group of Assembled to figure out where they're coming from, and they're closing on this area, come on!" Acquired 3 matter. G-34 Mercenary destroyed. HV Slug penetrates L-31 Rogue. Core Extractor disabled. Acquired Aluminum Leg. Acquired 22 matter. L-31 Rogue suffers critical hit (Destroy). L-31 Rogue knocked back. LH-L6E(h) destroyed. Acquired Flexi-carbon Leg. L-31 Rogue destroyed. Map ----- +----------------------------------------------------+ | | | | | | | | | | | | | | | | | | | | | | | | | | | | | | | | | | | | | | | | | ??????????????????????????????????????????????? | | ?????????????????###########??????????????????? | | ?????????????????# a #??????????????????? | | ??????# ######*a """ #??????????????????? | | ?????# a aaa*a% "" #??????????????????? | | ?????# ######aa %@ "" #??????????????????? | | ?????????????????# #??????????????????? | | ?????????????????####;######??????????????????? | | ????????????????????###???????????????????????? | | ??????????????????????????????????????????????? | | ??????????????????????????????????????????????? | | ??????????????????????????????????????????????? | | ??????????????????????????????????????????????? | | ??????????????????????????????????????????????? | | ??????????????????????????????????????????????? | | ??????????????????????????????????????????????? | | ??????????????????????????????????????????????? | | ??????????????????????????????????????????????? | | ??????????????????????????????????????????????? | | ??????????????????????????????????????????????? | | ??????????????????????????????????????????????? | | ??????????????????????????????????????????????? | | ??????????????????????????????????????????????? | | ??????????????????????????????????????????????? | | ??????????????????????????????????????????????? | | ??????????????????????????????????????????????? | | ??????????????????????????????????????????????? | | ??????????????????????????????????????????????? | | ??????????????????????????????????????????????? | | ??????????????????????????????????????????????? | +----------------------------------------------------+ Best States ------------- Heat Dissipation 28 Energy Generation 14 Energy Capacity 275 Matter Stores 288 Matter Capacity 400 Sight Range 16 Terrain Scan Density 85 Evasion (%) 53 Item Schematics ----------------- None Robot Schematics ------------------ None Fabricated ------------ Nothing Repaired ---------- Hover Unit | 73% | -10/Materials Hover Unit | 36% | -10/Materials Hover Unit | 56% | -9/Materials | Broken Alien Tech Used ----------------- None Achievements -------------- Hunted Challenges ------------ None Game ------ Seed SpikedDimensionalSlayer Manual? 0 Play Time 00:22:34 Cumulative 10.6 hours Start 2025.10.20 @ 21:02:41 End 2025.10.20 @ 21:24:41 Sessions 1 Manual Loads 0 Difficulty Rogue Special Mode None Game No. 15 Rogue 15 Adventurer 0 Explorer 0 Win Type - Total 0 Types 0/0/0/0/0/0/0/0/0/0 Lore% 8 Gallery% 13 Achievement% 15 Wizard Run 0 Options --------- Layout 2 ASCII 0 Keyboard 0 Movement Mouse Keybinds 0 Fullscreen 1 Font 16/SmallcapsGlow Map View 25x24 Zoom Use 100% Tactical HUD 0 Map Filters NONE Filters NONE Steam SD RUN: ae23a792-28c9-4631-aa27-b46e78b473e5